[Event "Titled Tuesday Blitz October 5 2021"]
[White "Krysa, Leandro"]
[Black "Gubajdullin, Alexei"]
[WhiteFideId "116807"]
[BlackFideId "4141202"]
[WhiteElo "2490"]
[BlackElo "2268"]
[Result "1-0"]
[Round "05"]
[TimeControl "180+1"]
[Date "2021.10.05"]
[WhiteClock "0:00:11"]
[BlackClock "0:00:18"]

1. e4 {[%clk 0:03:00]}  d6 {[%clk 0:02:58]} 2. d4 {[%clk 0:03:00]}  g6 {[%clk 0:02:58]} 3. Nf3 {[%clk 0:02:59]}  Nf6 {[%clk 0:02:57]} 4. Nc3 {[%clk 0:02:56]}  Bg7 {[%clk 0:02:57]} 5. Be2 {[%clk 0:02:57]}  O-O {[%clk 0:02:57]} 6. O-O {[%clk 0:02:58]}  a6 {[%clk 0:02:57]} 7. Re1 {[%clk 0:02:57]}  e6 {[%clk 0:02:55]} 8. a4 {[%clk 0:02:53]}  b6 {[%clk 0:02:55]} 9. Bg5 {[%clk 0:02:36]}  h6 {[%clk 0:02:53]} 10. Bh4 {[%clk 0:02:35]}  Bb7 {[%clk 0:02:53]} 11. e5 {[%clk 0:02:27]}  dxe5 {[%clk 0:02:53]} 12. Nxe5 {[%clk 0:02:13]}  Nbd7 {[%clk 0:02:45]} 13. Bf3 {[%clk 0:02:08]}  Qc8 {[%clk 0:02:44]} 14. Nxd7 {[%clk 0:01:58]}  Nxd7 {[%clk 0:02:43]} 15. d5 {[%clk 0:01:55]}  Ne5 {[%clk 0:02:37]} 16. Bg3 {[%clk 0:01:42]}  Nxf3+ {[%clk 0:02:35]} 17. Qxf3 {[%clk 0:01:43]}  Rd8 {[%clk 0:02:29]} 18. Rad1 {[%clk 0:01:39]}  Rd7 {[%clk 0:02:09]} 19. dxe6 {[%clk 0:01:31]}  Rxd1 {[%clk 0:02:08]} 20. Qxf7+ {[%clk 0:01:26]}  Kh8 {[%clk 0:02:07]} 21. Rxd1 {[%clk 0:01:25]}  Bc6 {[%clk 0:01:59]} 22. Bxc7 {[%clk 0:01:08]}  Qb7 {[%clk 0:01:57]} 23. Bd8 {[%clk 0:00:38]}  Bxc3 {[%clk 0:01:44]} 24. e7 {[%clk 0:00:21]}  Ra7 {[%clk 0:00:51]} 25. e8=Q+ {[%clk 0:00:17]}  Bxe8 {[%clk 0:00:50]} 26. Qxe8+ {[%clk 0:00:17]}  Kh7 {[%clk 0:00:50]} 27. bxc3 {[%clk 0:00:17]}  g5 {[%clk 0:00:43]} 28. Re1 {[%clk 0:00:12]}  Qd5 {[%clk 0:00:40]} 29. Re7+ {[%clk 0:00:10]}  Rxe7 {[%clk 0:00:39]} 30. Qxe7+ {[%clk 0:00:11]}  Kg8 {[%clk 0:00:38]} 31. h3 {[%clk 0:00:07]}  Qc6 {[%clk 0:00:25]} 32. Qb4 {[%clk 0:00:05]}  b5 {[%clk 0:00:20]} 33. axb5 {[%clk 0:00:05]}  axb5 {[%clk 0:00:20]} 34. Qd4 {[%clk 0:00:05]}  Qe6 {[%clk 0:00:17]} 35. Bb6 {[%clk 0:00:05]}  Qe1+ {[%clk 0:00:15]} 36. Kh2 {[%clk 0:00:05]}  Qe6 {[%clk 0:00:15]} 37. Bc5 {[%clk 0:00:04]}  Kf7 {[%clk 0:00:14]} 38. Qd6 {[%clk 0:00:04]}  Qf5 {[%clk 0:00:12]} 39. Qc7+ {[%clk 0:00:04]}  Kg8 {[%clk 0:00:11]} 40. Qd6 {[%clk 0:00:05]}  Kf7 {[%clk 0:00:09]} 41. Be3 {[%clk 0:00:05]}  h5 {[%clk 0:00:07]} 42. Qc5 {[%clk 0:00:04]}  Qxc2 {[%clk 0:00:05]} 43. Qxg5 {[%clk 0:00:04]}  Ke6 {[%clk 0:00:04]} 44. Qxb5 {[%clk 0:00:04]}  Qd1 {[%clk 0:00:03]} 45. Qc6+ {[%clk 0:00:03]}  Kf5 {[%clk 0:00:03]} 46. Qf3+ {[%clk 0:00:04]}  Qxf3 {[%clk 0:00:02]} 47. gxf3 {[%clk 0:00:04]}  h4 {[%clk 0:00:03]} 48. Kg2 {[%clk 0:00:04]}  Ke5 {[%clk 0:00:04]} 49. Kf1 {[%clk 0:00:05]}  Kf5 {[%clk 0:00:05]} 50. Ke2 {[%clk 0:00:06]}  Ke5 {[%clk 0:00:05]} 51. Kd3 {[%clk 0:00:07]}  Kd5 {[%clk 0:00:06]} 52. c4+ {[%clk 0:00:07]}  Ke5 {[%clk 0:00:07]} 53. Kc3 {[%clk 0:00:08]}  Kd6 {[%clk 0:00:08]} 54. Kd4 {[%clk 0:00:08]}  Kc6 {[%clk 0:00:09]} 55. Ke4 {[%clk 0:00:08]}  Kd6 {[%clk 0:00:10]} 56. Kf4 {[%clk 0:00:09]}  Ke6 {[%clk 0:00:11]} 57. Kg4 {[%clk 0:00:09]}  Kd6 {[%clk 0:00:11]} 58. Kxh4 {[%clk 0:00:09]}  Ke5 {[%clk 0:00:11]} 59. Kg5 {[%clk 0:00:10]}  Ke6 {[%clk 0:00:11]} 60. h4 {[%clk 0:00:10]}  Ke5 {[%clk 0:00:12]} 61. h5 {[%clk 0:00:10]}  Kd6 {[%clk 0:00:13]} 62. Kg6 {[%clk 0:00:10]}  Kc6 {[%clk 0:00:14]} 63. h6 {[%clk 0:00:11]}  Kd7 {[%clk 0:00:15]} 64. h7 {[%clk 0:00:11]}  Ke6 {[%clk 0:00:15]} 65. h8=Q {[%clk 0:00:11]}  Kd6 {[%clk 0:00:16]} 66. Qd4+ {[%clk 0:00:11]}  Kc6 {[%clk 0:00:17]} 67. Qd5+ {[%clk 0:00:11]}  Kc7 {[%clk 0:00:18]} 68. c5 {[%clk 0:00:11]}  Kc8 {[%clk 0:00:19]} 69. Qf7 {[%clk 0:00:11]}  Kd8 {[%clk 0:00:18]} 70. c6 {[%clk 0:00:11]}  Kc8 {[%clk 0:00:19]} 71. Qd7+ {[%clk 0:00:11]}  Kb8 {[%clk 0:00:18]} 72. Qb7# {[%clk 0:00:11]} 1-0


[Site "https://www.chess.com"]

[Event "Titled Tuesday Blitz October 5 2021"]
[White "Madaminov, Mukhiddin"]
[Black "Moskalenko, Alexander"]
[WhiteFideId "14210703"]
[BlackFideId "4155351"]
[WhiteElo "1855"]
[BlackElo "2515"]
[Result "1-0"]
[Round "05"]
[TimeControl "180+1"]
[Date "2021.10.05"]
[WhiteClock "0:00:03"]
[BlackClock "0:00:03"]

1. e4 {[%clk 0:03:00]}  c6 {[%clk 0:02:59]} 2. Nf3 {[%clk 0:03:01]}  d5 {[%clk 0:03:00]} 3. Nc3 {[%clk 0:03:01]}  dxe4 {[%clk 0:02:59]} 4. Nxe4 {[%clk 0:03:02]}  Nf6 {[%clk 0:03:00]} 5. Nxf6+ {[%clk 0:03:03]}  exf6 {[%clk 0:03:01]} 6. Bc4 {[%clk 0:03:02]}  Bd6 {[%clk 0:03:01]} 7. Qe2+ {[%clk 0:03:02]}  Qe7 {[%clk 0:03:02]} 8. Qxe7+ {[%clk 0:03:01]}  Kxe7 {[%clk 0:03:03]} 9. O-O {[%clk 0:03:01]}  Be6 {[%clk 0:03:03]} 10. Re1 {[%clk 0:03:00]}  Kd7 {[%clk 0:03:04]} 11. Bb3 {[%clk 0:02:57]}  Re8 {[%clk 0:03:03]} 12. d3 {[%clk 0:02:58]}  Na6 {[%clk 0:03:03]} 13. Be3 {[%clk 0:02:52]}  Nc5 {[%clk 0:03:03]} 14. Bxe6+ {[%clk 0:02:50]}  fxe6 {[%clk 0:03:00]} 15. Rad1 {[%clk 0:02:48]}  Kc7 {[%clk 0:02:57]} 16. Nd2 {[%clk 0:02:48]}  b5 {[%clk 0:02:53]} 17. Kf1 {[%clk 0:02:46]}  Na4 {[%clk 0:02:47]} 18. Rb1 {[%clk 0:02:42]}  e5 {[%clk 0:02:43]} 19. g4 {[%clk 0:02:36]}  a5 {[%clk 0:02:38]} 20. Ne4 {[%clk 0:02:34]}  Bb4 {[%clk 0:02:34]} 21. Red1 {[%clk 0:02:16]}  Nb6 {[%clk 0:02:31]} 22. Ke2 {[%clk 0:02:05]}  Nd5 {[%clk 0:02:24]} 23. h4 {[%clk 0:02:03]}  Nxe3 {[%clk 0:02:14]} 24. fxe3 {[%clk 0:02:02]}  Be7 {[%clk 0:02:12]} 25. h5 {[%clk 0:01:58]}  Rf8 {[%clk 0:02:10]} 26. Rf1 {[%clk 0:01:56]}  g6 {[%clk 0:02:09]} 27. Rf2 {[%clk 0:01:42]}  Kd7 {[%clk 0:02:05]} 28. Rh1 {[%clk 0:01:32]}  f5 {[%clk 0:01:58]} 29. gxf5 {[%clk 0:01:31]}  gxf5 {[%clk 0:01:59]} 30. Ng3 {[%clk 0:01:32]}  Ke6 {[%clk 0:01:59]} 31. Rhf1 {[%clk 0:01:29]}  f4 {[%clk 0:01:40]} 32. exf4 {[%clk 0:01:25]}  exf4 {[%clk 0:01:33]} 33. Rxf4 {[%clk 0:01:21]}  Rxf4 {[%clk 0:01:34]} 34. Rxf4 {[%clk 0:01:21]}  Rg8 {[%clk 0:01:35]} 35. Kf3 {[%clk 0:01:11]}  Bd6 {[%clk 0:01:27]} 36. Rg4 {[%clk 0:01:09]}  Rf8+ {[%clk 0:01:24]} 37. Ke3 {[%clk 0:00:57]}  Bxg3 {[%clk 0:01:23]} 38. Rxg3 {[%clk 0:00:58]}  Rf5 {[%clk 0:01:23]} 39. h6 {[%clk 0:00:43]}  Rh5 {[%clk 0:01:20]} 40. c4 {[%clk 0:00:24]}  Kd6 {[%clk 0:01:10]} 41. cxb5 {[%clk 0:00:22]}  cxb5 {[%clk 0:01:11]} 42. Rg7 {[%clk 0:00:16]}  Rh3+ {[%clk 0:01:10]} 43. Kd4 {[%clk 0:00:14]}  Rh4+ {[%clk 0:01:11]} 44. Kc3 {[%clk 0:00:14]}  Rxh6 {[%clk 0:01:11]} 45. Ra7 {[%clk 0:00:14]}  Rh1 {[%clk 0:01:05]} 46. Rxa5 {[%clk 0:00:13]}  Kc6 {[%clk 0:01:05]} 47. Kb4 {[%clk 0:00:07]}  Rh4+ {[%clk 0:01:04]} 48. Kc3 {[%clk 0:00:08]}  h5 {[%clk 0:01:04]} 49. Ra8 {[%clk 0:00:07]}  Rh2 {[%clk 0:01:00]} 50. Rh8 {[%clk 0:00:07]}  h4 {[%clk 0:01:00]} 51. Rh6+ {[%clk 0:00:07]}  Kc5 {[%clk 0:00:59]} 52. Rh5+ {[%clk 0:00:07]}  Kc6 {[%clk 0:01:00]} 53. a3 {[%clk 0:00:06]}  h3 {[%clk 0:00:59]} 54. b3 {[%clk 0:00:06]}  Rh1 {[%clk 0:00:27]} 55. Kb4 {[%clk 0:00:06]}  h2 {[%clk 0:00:27]} 56. Rh6+ {[%clk 0:00:03]}  Kd5 {[%clk 0:00:27]} 57. Rh4 {[%clk 0:00:02]}  Kc6 {[%clk 0:00:23]} 58. Rh5 {[%clk 0:00:02]}  Kd6 {[%clk 0:00:20]} 59. d4 {[%clk 0:00:03]}  Kc6 {[%clk 0:00:19]} 60. Rh4 {[%clk 0:00:03]}  Kd5 {[%clk 0:00:17]} 61. Rh3 {[%clk 0:00:02]}  Kxd4 {[%clk 0:00:17]} 62. Rh5 {[%clk 0:00:03]}  Ke3 {[%clk 0:00:16]} 63. Rh6 {[%clk 0:00:02]}  Kf4 {[%clk 0:00:16]} 64. Kxb5 {[%clk 0:00:03]}  Kg3 {[%clk 0:00:15]} 65. b4 {[%clk 0:00:02]}  Ra1 {[%clk 0:00:15]} 66. a4 {[%clk 0:00:02]}  h1=Q {[%clk 0:00:15]} 67. Rxh1 {[%clk 0:00:03]}  Rxh1 {[%clk 0:00:16]} 68. a5 {[%clk 0:00:03]}  Kf4 {[%clk 0:00:16]} 69. a6 {[%clk 0:00:03]}  Ra1 {[%clk 0:00:07]} 70. Kb6 {[%clk 0:00:03]}  Ke5 {[%clk 0:00:08]} 71. b5 {[%clk 0:00:02]}  Kd6 {[%clk 0:00:09]} 72. Ka7 {[%clk 0:00:02]}  Kc5 {[%clk 0:00:07]} 73. b6 {[%clk 0:00:03]}  Kb5 {[%clk 0:00:07]} 74. b7 {[%clk 0:00:03]}  Rxa6+ {[%clk 0:00:07]} 75. Kb8 {[%clk 0:00:04]}  Re6 {[%clk 0:00:03]} 76. Ka7 {[%clk 0:00:02]}  Re7 {[%clk 0:00:03]} 77. Ka8 {[%clk 0:00:03]}  Ka6 {[%clk 0:00:03]} 78. b8=Q {[%clk 0:00:02]}  Re6 {[%clk 0:00:03]} 79. Qc8+ {[%clk 0:00:02]}  Ka5 {[%clk 0:00:03]} 80. Qxe6 {[%clk 0:00:03]} 1-0


[Site "https://www.chess.com"]

[Event "Titled Tuesday Blitz October 5 2021"]
[White "Maiorov, Nikita"]
[Black "Khamrakulov, Djurabek"]
[WhiteFideId "13501720"]
[BlackFideId "14201143"]
[WhiteElo "2456"]
[BlackElo "2535"]
[Result "0-1"]
[Round "05"]
[TimeControl "180+1"]
[Date "2021.10.05"]
[WhiteClock "0:00:25"]
[BlackClock "0:00:59"]

1. d4 {[%clk 0:03:00]}  Nf6 {[%clk 0:02:57]} 2. c4 {[%clk 0:03:00]}  e6 {[%clk 0:02:57]} 3. Nc3 {[%clk 0:02:58]}  Bb4 {[%clk 0:02:57]} 4. Qc2 {[%clk 0:02:59]}  O-O {[%clk 0:02:55]} 5. a3 {[%clk 0:02:58]}  Bxc3+ {[%clk 0:02:55]} 6. Qxc3 {[%clk 0:02:58]}  b6 {[%clk 0:02:56]} 7. Bg5 {[%clk 0:02:56]}  Bb7 {[%clk 0:02:55]} 8. f3 {[%clk 0:02:56]}  c5 {[%clk 0:02:52]} 9. dxc5 {[%clk 0:02:55]}  bxc5 {[%clk 0:02:53]} 10. e3 {[%clk 0:02:47]}  d6 {[%clk 0:02:48]} 11. Nh3 {[%clk 0:02:44]}  Nbd7 {[%clk 0:02:47]} 12. Be2 {[%clk 0:02:44]}  Qb6 {[%clk 0:02:46]} 13. O-O {[%clk 0:02:43]}  a5 {[%clk 0:02:45]} 14. Rfd1 {[%clk 0:02:41]}  Rfb8 {[%clk 0:02:43]} 15. Rab1 {[%clk 0:02:40]}  Ba6 {[%clk 0:02:39]} 16. Bf1 {[%clk 0:02:09]}  d5 {[%clk 0:02:21]} 17. Bh4 {[%clk 0:02:02]}  Qb3 {[%clk 0:02:16]} 18. Be1 {[%clk 0:01:32]}  Bxc4 {[%clk 0:02:05]} 19. Bxc4 {[%clk 0:01:31]}  dxc4 {[%clk 0:02:03]} 20. e4 {[%clk 0:01:30]}  Nb6 {[%clk 0:02:00]} 21. Qe5 {[%clk 0:01:17]}  Na4 {[%clk 0:01:52]} 22. Nf4 {[%clk 0:01:15]}  Rd8 {[%clk 0:01:46]} 23. Rdc1 {[%clk 0:01:05]}  h6 {[%clk 0:01:38]} 24. Kh1 {[%clk 0:00:58]}  Rd7 {[%clk 0:01:35]} 25. Bh4 {[%clk 0:00:46]}  Rad8 {[%clk 0:01:08]} 26. Rg1 {[%clk 0:00:45]}  Rd1 {[%clk 0:01:06]} 27. Bxf6 {[%clk 0:00:36]}  Rxb1 {[%clk 0:01:06]} 28. Bxd8 {[%clk 0:00:35]}  Rxg1+ {[%clk 0:01:06]} 29. Kxg1 {[%clk 0:00:34]}  Qd1+ {[%clk 0:01:06]} 30. Kf2 {[%clk 0:00:35]}  Qxd8 {[%clk 0:01:05]} 31. Nh5 {[%clk 0:00:30]}  Qd4+ {[%clk 0:01:04]} 32. Qxd4 {[%clk 0:00:29]}  cxd4 {[%clk 0:01:05]} 33. Ke2 {[%clk 0:00:26]}  Nxb2 {[%clk 0:01:04]} 34. Kd2 {[%clk 0:00:25]}  e5 {[%clk 0:00:59]} 0-1


[Site "https://www.chess.com"]

[Event "Titled Tuesday Blitz October 5 2021"]
[White "Martinovici, Ilia"]
[Black "Khanin, Semen"]
[WhiteFideId "13907034"]
[BlackFideId "4111990"]
[WhiteElo "2303"]
[BlackElo "2436"]
[Result "1-0"]
[Round "05"]
[TimeControl "180+1"]
[Date "2021.10.05"]
[WhiteClock "0:00:42"]
[BlackClock "0:00:43"]

1. d4 {[%clk 0:03:00]}  g6 {[%clk 0:02:59]} 2. c4 {[%clk 0:03:01]}  Bg7 {[%clk 0:03:00]} 3. Nc3 {[%clk 0:03:01]}  d6 {[%clk 0:03:00]} 4. e4 {[%clk 0:03:00]}  e5 {[%clk 0:03:01]} 5. d5 {[%clk 0:03:00]}  a5 {[%clk 0:03:00]} 6. Nge2 {[%clk 0:02:57]}  Na6 {[%clk 0:03:00]} 7. f3 {[%clk 0:02:56]}  Nh6 {[%clk 0:02:35]} 8. Be3 {[%clk 0:02:52]}  f5 {[%clk 0:02:34]} 9. Qd2 {[%clk 0:02:50]}  O-O {[%clk 0:02:34]} 10. O-O-O {[%clk 0:02:46]}  Qh4 {[%clk 0:02:27]} 11. Bg5 {[%clk 0:02:36]}  Qf2 {[%clk 0:02:23]} 12. Bxh6 {[%clk 0:02:35]}  Bxh6 {[%clk 0:02:22]} 13. Qxh6 {[%clk 0:02:36]}  Nc5 {[%clk 0:02:19]} 14. Qd2 {[%clk 0:02:14]}  fxe4 {[%clk 0:02:07]} 15. Nxe4 {[%clk 0:02:15]}  Nxe4 {[%clk 0:02:07]} 16. fxe4 {[%clk 0:02:16]}  a4 {[%clk 0:02:07]} 17. Nc3 {[%clk 0:02:07]}  Qc5 {[%clk 0:02:03]} 18. Be2 {[%clk 0:02:06]}  a3 {[%clk 0:02:03]} 19. b3 {[%clk 0:02:05]}  Rf2 {[%clk 0:01:57]} 20. Rhg1 {[%clk 0:01:50]}  Bd7 {[%clk 0:01:35]} 21. Rdf1 {[%clk 0:01:46]}  Raf8 {[%clk 0:01:35]} 22. Nd1 {[%clk 0:01:37]}  Rxe2 {[%clk 0:00:49]} 23. Qxe2 {[%clk 0:01:32]}  Rxf1 {[%clk 0:00:46]} 24. Rxf1 {[%clk 0:01:31]}  Qd4 {[%clk 0:00:47]} 25. Kb1 {[%clk 0:00:56]}  Bg4 {[%clk 0:00:43]} 26. Qe3 {[%clk 0:00:42]} 1-0


[Site "https://www.chess.com"]

[Event "Titled Tuesday Blitz October 5 2021"]
[White "Melikhov, Evgeny V."]
[Black "Sadykov, Ramil"]
[WhiteFideId "4122046"]
[BlackFideId "24113590"]
[WhiteElo "1927"]
[BlackElo "2300"]
[Result "0-1"]
[Round "05"]
[TimeControl "180+1"]
[Date "2021.10.05"]
[WhiteClock "0:00:06"]
[BlackClock "0:00:05"]

1. d4 {[%clk 0:03:00]}  d5 {[%clk 0:02:59]} 2. c4 {[%clk 0:03:00]}  e6 {[%clk 0:02:59]} 3. Nc3 {[%clk 0:03:00]}  Nf6 {[%clk 0:02:57]} 4. cxd5 {[%clk 0:03:00]}  exd5 {[%clk 0:02:57]} 5. Bg5 {[%clk 0:03:00]}  c6 {[%clk 0:02:56]} 6. Qc2 {[%clk 0:03:00]}  Be7 {[%clk 0:02:55]} 7. e3 {[%clk 0:03:00]}  Nbd7 {[%clk 0:02:48]} 8. Bd3 {[%clk 0:02:59]}  O-O {[%clk 0:02:44]} 9. Nf3 {[%clk 0:02:59]}  Re8 {[%clk 0:02:43]} 10. O-O {[%clk 0:02:59]}  Nf8 {[%clk 0:02:40]} 11. h3 {[%clk 0:02:59]}  g6 {[%clk 0:02:37]} 12. Ne5 {[%clk 0:02:56]}  Ne6 {[%clk 0:02:33]} 13. Bh6 {[%clk 0:02:56]}  Ng7 {[%clk 0:02:29]} 14. Rab1 {[%clk 0:02:52]}  Bf5 {[%clk 0:02:12]} 15. b4 {[%clk 0:02:52]}  Bxd3 {[%clk 0:02:08]} 16. Qxd3 {[%clk 0:02:51]}  Nf5 {[%clk 0:02:00]} 17. Bg5 {[%clk 0:02:49]}  a6 {[%clk 0:01:58]} 18. a4 {[%clk 0:02:48]}  Nd7 {[%clk 0:01:47]} 19. Bxe7 {[%clk 0:02:44]}  Rxe7 {[%clk 0:01:40]} 20. Nxd7 {[%clk 0:02:39]}  Qxd7 {[%clk 0:01:40]} 21. b5 {[%clk 0:02:38]}  axb5 {[%clk 0:01:34]} 22. axb5 {[%clk 0:02:38]}  Ra3 {[%clk 0:01:34]} 23. Qc2 {[%clk 0:02:32]}  Re8 {[%clk 0:01:27]} 24. Rb3 {[%clk 0:02:31]}  Rea8 {[%clk 0:01:25]} 25. Rxa3 {[%clk 0:02:29]}  Rxa3 {[%clk 0:01:26]} 26. Rb1 {[%clk 0:02:25]}  h5 {[%clk 0:01:13]} 27. Rb3 {[%clk 0:02:04]}  Qd6 {[%clk 0:01:09]} 28. Rxa3 {[%clk 0:01:56]}  Qxa3 {[%clk 0:01:10]} 29. bxc6 {[%clk 0:01:56]}  bxc6 {[%clk 0:01:09]} 30. Na4 {[%clk 0:01:53]}  Qa1+ {[%clk 0:01:00]} 31. Kh2 {[%clk 0:01:53]}  Qf1 {[%clk 0:01:00]} 32. Nc5 {[%clk 0:01:40]}  Nh4 {[%clk 0:00:57]} 33. f3 {[%clk 0:01:27]}  Nf5 {[%clk 0:00:57]} 34. Qd3 {[%clk 0:01:20]}  Qe1 {[%clk 0:00:45]} 35. e4 {[%clk 0:01:14]}  Qg3+ {[%clk 0:00:42]} 36. Kg1 {[%clk 0:01:13]}  Nh4 {[%clk 0:00:37]} 37. Qf1 {[%clk 0:01:12]}  Qf4 {[%clk 0:00:16]} 38. Qf2 {[%clk 0:01:06]}  Qc1+ {[%clk 0:00:16]} 39. Kh2 {[%clk 0:01:05]}  Qf4+ {[%clk 0:00:16]} 40. Qg3 {[%clk 0:00:57]}  Nxf3+ {[%clk 0:00:13]} 41. gxf3 {[%clk 0:00:56]}  Qd2+ {[%clk 0:00:14]} 42. Qg2 {[%clk 0:00:56]}  Qxd4 {[%clk 0:00:14]} 43. Qc2 {[%clk 0:00:51]}  Qe3 {[%clk 0:00:12]} 44. Kg2 {[%clk 0:00:50]}  h4 {[%clk 0:00:12]} 45. Qf2 {[%clk 0:00:43]}  Qg5+ {[%clk 0:00:12]} 46. Kh2 {[%clk 0:00:43]}  Qf4+ {[%clk 0:00:12]} 47. Kh1 {[%clk 0:00:41]}  dxe4 {[%clk 0:00:12]} 48. Nxe4 {[%clk 0:00:41]}  Kh7 {[%clk 0:00:11]} 49. Kg2 {[%clk 0:00:37]}  f5 {[%clk 0:00:10]} 50. Nd2 {[%clk 0:00:33]}  c5 {[%clk 0:00:09]} 51. Nf1 {[%clk 0:00:30]}  c4 {[%clk 0:00:09]} 52. Ne3 {[%clk 0:00:30]}  c3 {[%clk 0:00:09]} 53. Nc2 {[%clk 0:00:30]}  Kh6 {[%clk 0:00:09]} 54. Qe1 {[%clk 0:00:28]}  Qd2+ {[%clk 0:00:04]} 55. Qxd2+ {[%clk 0:00:28]}  cxd2 {[%clk 0:00:04]} 56. Ne3 {[%clk 0:00:28]}  Kg5 {[%clk 0:00:05]} 57. Nd1 {[%clk 0:00:26]}  Kf4 {[%clk 0:00:05]} 58. Kf2 {[%clk 0:00:27]}  g5 {[%clk 0:00:06]} 59. Ne3 {[%clk 0:00:26]}  g4 {[%clk 0:00:06]} 60. fxg4 {[%clk 0:00:23]}  fxg4 {[%clk 0:00:06]} 61. hxg4 {[%clk 0:00:24]}  h3 {[%clk 0:00:06]} 62. Nd1 {[%clk 0:00:17]}  Kxg4 {[%clk 0:00:06]} 63. Ke2 {[%clk 0:00:15]}  h2 {[%clk 0:00:05]} 64. Nf2+ {[%clk 0:00:07]}  Kg3 {[%clk 0:00:04]} 65. Nh1+ {[%clk 0:00:06]}  Kg2 {[%clk 0:00:05]} 66. Kxd2 {[%clk 0:00:06]}  Kxh1 {[%clk 0:00:05]} 67. Ke2 {[%clk 0:00:06]}  Kg2 {[%clk 0:00:05]} 0-1


[Site "https://www.chess.com"]

[Event "Titled Tuesday Blitz October 5 2021"]
[White "Nagy, Gabor"]
[Black "Tologon tegin, Semetei"]
[WhiteFideId "737119"]
[BlackFideId "13800574"]
[WhiteElo "2534"]
[BlackElo "2224"]
[Result "1-0"]
[Round "05"]
[TimeControl "180+1"]
[Date "2021.10.05"]
[WhiteClock "0:00:14"]
[BlackClock "0:00:01"]

1. e4 {[%clk 0:03:00]}  c5 {[%clk 0:02:57]} 2. Nf3 {[%clk 0:03:00]}  d6 {[%clk 0:02:58]} 3. d4 {[%clk 0:03:00]}  cxd4 {[%clk 0:02:58]} 4. Nxd4 {[%clk 0:03:00]}  Nf6 {[%clk 0:02:59]} 5. Nc3 {[%clk 0:03:01]}  g6 {[%clk 0:03:00]} 6. Bg5 {[%clk 0:02:54]}  Bg7 {[%clk 0:02:59]} 7. Bb5+ {[%clk 0:02:54]}  Bd7 {[%clk 0:02:57]} 8. Qe2 {[%clk 0:02:55]}  O-O {[%clk 0:02:55]} 9. O-O-O {[%clk 0:02:54]}  a6 {[%clk 0:02:48]} 10. Bxd7 {[%clk 0:02:51]}  Nbxd7 {[%clk 0:02:47]} 11. f4 {[%clk 0:02:52]}  Qc7 {[%clk 0:02:30]} 12. Rhe1 {[%clk 0:02:47]}  e5 {[%clk 0:02:13]} 13. fxe5 {[%clk 0:02:36]}  dxe5 {[%clk 0:02:14]} 14. Nb3 {[%clk 0:02:35]}  Rac8 {[%clk 0:02:09]} 15. Kb1 {[%clk 0:02:31]}  h6 {[%clk 0:02:07]} 16. Bh4 {[%clk 0:02:21]}  Nb6 {[%clk 0:02:05]} 17. Rf1 {[%clk 0:02:16]}  Nh5 {[%clk 0:01:54]} 18. Bf2 {[%clk 0:02:06]}  Nf4 {[%clk 0:01:46]} 19. Qf3 {[%clk 0:02:05]}  Rcd8 {[%clk 0:00:36]} 20. g3 {[%clk 0:02:02]}  Ne6 {[%clk 0:00:35]} 21. Bxb6 {[%clk 0:02:00]}  Qxb6 {[%clk 0:00:35]} 22. Nd5 {[%clk 0:02:01]}  Qb5 {[%clk 0:00:28]} 23. c3 {[%clk 0:01:56]}  Kh7 {[%clk 0:00:23]} 24. h4 {[%clk 0:01:53]}  a5 {[%clk 0:00:21]} 25. Nc1 {[%clk 0:01:47]}  a4 {[%clk 0:00:20]} 26. a3 {[%clk 0:01:46]}  Nc5 {[%clk 0:00:19]} 27. Nd3 {[%clk 0:01:43]}  Nb3 {[%clk 0:00:18]} 28. h5 {[%clk 0:01:41]}  Na5 {[%clk 0:00:16]} 29. N3b4 {[%clk 0:01:34]}  Nc4 {[%clk 0:00:16]} 30. Ka2 {[%clk 0:01:32]}  Nd6 {[%clk 0:00:13]} 31. Rde1 {[%clk 0:01:25]}  Qc4+ {[%clk 0:00:14]} 32. Ka1 {[%clk 0:01:25]}  Nb5 {[%clk 0:00:11]} 33. g4 {[%clk 0:01:23]}  Qb3 {[%clk 0:00:09]} 34. Qh3 {[%clk 0:01:19]}  Nd6 {[%clk 0:00:08]} 35. g5 {[%clk 0:01:18]}  Nc4 {[%clk 0:00:06]} 36. Re2 {[%clk 0:01:14]}  gxh5 {[%clk 0:00:04]} 37. gxh6 {[%clk 0:01:13]}  Bxh6 {[%clk 0:00:03]} 38. Nf6+ {[%clk 0:01:12]}  Kg7 {[%clk 0:00:02]} 39. Nxh5+ {[%clk 0:01:09]}  Kh7 {[%clk 0:00:02]} 40. Qf5+ {[%clk 0:01:04]}  Kh8 {[%clk 0:00:01]} 41. Qf6+ {[%clk 0:01:04]}  Kh7 {[%clk 0:00:02]} 42. Rb1 {[%clk 0:00:50]}  Rd1 {[%clk 0:00:03]} 43. Qf5+ {[%clk 0:00:51]}  Kh8 {[%clk 0:00:02]} 44. Qf6+ {[%clk 0:00:32]}  Kh7 {[%clk 0:00:02]} 45. Qf5+ {[%clk 0:00:19]}  Kh8 {[%clk 0:00:02]} 46. Na2 {[%clk 0:00:14]}  Rxb1+ {[%clk 0:00:01]} 47. Kxb1 {[%clk 0:00:15]}  Qc2+ {[%clk 0:00:01]} 48. Kxc2 {[%clk 0:00:14]} 1-0


[Site "https://www.chess.com"]

[Event "Titled Tuesday Blitz October 5 2021"]
[White "Nakamura, Hikaru"]
[Black "Hamidi, Amir Mohammad"]
[WhiteFideId "2016192"]
[BlackFideId "12563285"]
[WhiteElo "2884"]
[BlackElo "2239"]
[Result "1-0"]
[Round "05"]
[TimeControl "180+1"]
[Date "2021.10.05"]
[WhiteClock "0:01:55"]
[BlackClock "0:00:54"]

1. Nf3 {[%clk 0:03:00]}  Nf6 {[%clk 0:02:56]} 2. e3 {[%clk 0:03:01]}  g6 {[%clk 0:02:56]} 3. b3 {[%clk 0:03:01]}  Bg7 {[%clk 0:02:57]} 4. d4 {[%clk 0:03:02]}  O-O {[%clk 0:02:57]} 5. Bb2 {[%clk 0:03:03]}  d6 {[%clk 0:02:58]} 6. Be2 {[%clk 0:03:02]}  Nbd7 {[%clk 0:02:58]} 7. O-O {[%clk 0:03:03]}  e5 {[%clk 0:02:58]} 8. dxe5 {[%clk 0:03:04]}  Ng4 {[%clk 0:02:59]} 9. c4 {[%clk 0:03:04]}  Ngxe5 {[%clk 0:02:59]} 10. Nxe5 {[%clk 0:03:05]}  Nxe5 {[%clk 0:02:59]} 11. Nc3 {[%clk 0:03:06]}  Be6 {[%clk 0:02:59]} 12. Qd2 {[%clk 0:03:05]}  Nc6 {[%clk 0:02:55]} 13. Nd5 {[%clk 0:03:04]}  Bxb2 {[%clk 0:02:52]} 14. Qxb2 {[%clk 0:03:05]}  Bxd5 {[%clk 0:02:47]} 15. cxd5 {[%clk 0:03:06]}  Ne5 {[%clk 0:02:48]} 16. Rac1 {[%clk 0:03:06]}  a5 {[%clk 0:02:47]} 17. Qc3 {[%clk 0:03:02]}  a4 {[%clk 0:02:45]} 18. b4 {[%clk 0:02:47]}  c6 {[%clk 0:02:35]} 19. f4 {[%clk 0:02:41]}  Nd7 {[%clk 0:02:34]} 20. dxc6 {[%clk 0:02:41]}  bxc6 {[%clk 0:02:34]} 21. Qxc6 {[%clk 0:02:42]}  Qe7 {[%clk 0:02:34]} 22. Qc3 {[%clk 0:02:39]}  a3 {[%clk 0:02:29]} 23. Bf3 {[%clk 0:02:35]}  Rab8 {[%clk 0:02:27]} 24. Qxa3 {[%clk 0:02:33]}  Nb6 {[%clk 0:02:23]} 25. Qd3 {[%clk 0:02:32]}  d5 {[%clk 0:02:20]} 26. a3 {[%clk 0:02:22]}  Rfd8 {[%clk 0:02:18]} 27. Rc3 {[%clk 0:02:08]}  Nc4 {[%clk 0:02:06]} 28. Bxd5 {[%clk 0:01:58]}  Nb6 {[%clk 0:00:54]} 29. e4 {[%clk 0:01:57]}  Nxd5 {[%clk 0:00:54]} 30. exd5 {[%clk 0:01:57]}  Rb5 {[%clk 0:00:54]} 31. Qxb5 {[%clk 0:01:55]} 1-0


[Site "https://www.chess.com"]